bitfinex-derivatives/quotes_ETHF0:USTF0_20240826
["timestamp","ask_amount","ask_price","bid_price","bid_amount"]
[1724701568289,13.45534871,2685.7,2685.6,3.21]
[1724701569092,13.45534871,2685.7,2685.4,3.21]
[1724701569292,7.4512,2685.5,2685.4,3.21]
[1724701569596,7.4512,2685.5,2685.4,7.22099747]
[1724701571002,7.4512,2685.5,2685.3,0.00409527]
[1724701571003,12.45164871,2685.5,2685.3,0.00409527]
[1724701571211,7.82345,2685.4,2685.3,0.00409527]
[1724701571495,0.37231,2685.0,2684.5,4.18658108]
[1724701571796,7.4512,2684.6,2684.5,3.21558088]
[1724701571997,7.4512,2684.6,2684.5,0.00558088]
[1724701572203,15.65944871,2684.6,2684.5,0.00558088]
[1724701572388,15.65944871,2684.6,2683.8,1.45429386]
[1724701572389,20.65944871,2684.6,2683.8,3.86260017]
[1724701572698,0.9337,2684.5,2684.1,4.19821855]
[1724701572899,7.4512,2684.2,2684.1,4.19821855]
[1724701573197,5.00044871,2684.5,2684.1,0.37243]
[1724701573499,7.4512,2684.3,2684.2,0.37242]
[1724701573893,7.4512,2684.3,2684.2,4.36548584]
[1724701574095,7.4512,2684.3,2684.2,3.99306584]
[1724701574295,12.45164871,2684.3,2684.2,3.99306584]
[1724701574491,12.45164871,2684.3,2684.1,3.21]
[1724701574703,0.9295,2684.2,2684.1,3.21]
[1724701574891,0.9295,2684.2,2684.1,7.19820325]
[1724701574892,8.3807,2684.2,2684.1,7.19820325]
[1724701575097,13.38114871,2684.2,2684.1,7.19820325]
[1724701575296,7.4512,2684.2,2684.1,7.57063325]
[1724701575499,3.21338088,2684.6,2684.1,8.15730325]
[1724701575703,7.4512,2684.5,2684.2,0.37241]
[1724701575896,7.4512,2684.5,2684.3,1.0079]
[1724701576098,7.4512,2684.5,2684.3,5.33861197]
[1724701576300,7.4512,2684.5,2684.3,4.96621197]
[1724701576599,7.4512,2684.5,2684.4,3.21]
[1724701577007,7.4512,2684.5,2684.4,7.24456684]
[1724701578108,12.45164871,2684.5,2684.4,7.24456684]
[1724701578802,12.45164871,2684.5,2684.4,7.61695684]
[1724701578803,7.4512,2684.5,2684.4,7.61695684]
[1724701579007,7.4512,2684.5,2684.4,7.24456684]
[1724701579603,7.4512,2684.5,2684.4,4.03456684]
[1724701579604,12.45164871,2684.5,2684.4,4.03456684]
[1724701579804,12.45164871,2684.5,2684.1,4.1691]
[1724701580111,7.4512,2684.2,2684.1,4.1691]
[1724701580309,7.4512,2684.2,2684.1,4.54153]
[1724701580516,0.00558088,2684.6,2684.5,0.37238]
[1724701580803,7.4512,2684.5,2684.4,0.37238]
[1724701581198,7.4512,2684.5,2684.4,4.07794283]
[1724701581706,7.4512,2684.5,2684.4,3.70556283]
[1724701582306,12.45164871,2684.5,2684.3,3.21]
[1724701582509,7.4512,2684.4,2684.3,3.21]
[1724701582711,8.4327,2684.4,2684.3,3.21]
[1724701582908,13.43314871,2684.4,2684.3,3.21]
[1724701586612,13.43314871,2684.4,2684.3,3.5824]
[1724701587400,12.45164871,2684.4,2684.3,3.5824]
[1724701587920,0.00558088,2684.6,2684.5,0.37238]
[1724701588211,12.45722959,2684.6,2684.5,0.37238]
[1724701588407,12.45722959,2684.6,2684.5,4.44756341]
[1724701588713,12.45722959,2684.6,2684.5,4.07518341]
[1724701588914,12.45722959,2684.6,2684.5,4.44756341]
[1724701589425,12.45722959,2684.6,2684.5,4.07518341]
[1724701596211,12.45722959,2684.6,2684.3,3.21]
[1724701596412,7.4512,2684.4,2684.3,3.21]
[1724701596816,12.45164871,2684.4,2684.3,3.21]
[1724701597017,12.45164871,2684.4,2684.3,3.5824]
[1724701597813,12.45164871,2684.4,2684.3,3.21]
[1724701598813,12.45164871,2684.4,2684.3,3.5824]
[1724701599014,12.45164871,2684.4,2684.3,3.21]
[1724701599714,12.45164871,2684.4,2684.3,3.5824]
[1724701601012,7.4512,2684.4,2684.3,3.5824]
[1724701601315,0.00558088,2684.6,2684.5,0.37238]
[1724701601712,4.2368,2684.8,2684.7,0.37235]
[1724701601713,3.2078,2684.8,2684.7,0.37235]
[1724701601934,7.4512,2684.8,2684.7,3.58235]
[1724701602224,7.4512,2684.8,2684.7,7.76857633]
[1724701602619,15.65944871,2684.8,2684.5,3.58237]
[1724701602820,7.4512,2684.6,2684.5,3.21]
[1724701603218,12.45164871,2684.6,2684.5,7.25189236]
[1724701603620,12.45164871,2684.6,2684.5,7.62427236]
[1724701604824,12.45164871,2684.6,2684.5,7.25189236]
[1724701605222,12.45164871,2684.6,2684.5,7.62427236]
[1724701605425,11.89297832,2684.6,2684.5,8.59669806]
[1724701605829,11.89297832,2684.6,2684.5,8.22431806]
[1724701606220,11.89297832,2684.6,2684.5,10.45889243]
[1724701606523,11.89297832,2684.6,2684.5,8.59669806]
[1724701606721,11.89297832,2684.6,2684.5,8.22431806]
[1724701607325,11.89297832,2684.6,2684.5,10.08654259]
[1724701608121,11.89297832,2684.6,2684.5,10.57275544]
[1724701608521,5.00044871,2684.6,2684.5,9.11411689]
[1724701608826,5.00044871,2684.6,2684.5,9.48651471]
[1724701608827,11.89297832,2684.6,2684.5,9.48651471]
[1724701609028,11.89297832,2684.6,2684.5,10.57277326]
[1724701611126,11.89297832,2684.6,2684.5,8.2257274]
[1724701611325,11.89297832,2684.6,2684.5,10.08801429]
[1724701612125,11.89297832,2684.6,2684.5,10.08799442]
[1724701613136,11.89297832,2684.6,2684.5,9.11415938]
[1724701613524,11.89297832,2684.6,2684.5,9.11416225]
[1724701613732,11.89297832,2684.6,2684.5,10.5728008]
[1724701615234,11.89297832,2684.6,2684.5,11.05901365]
[1724701615438,11.89297832,2684.6,2684.5,11.43139365]
[1724701616231,11.89297832,2684.6,2684.5,13.21100903]
[1724701616647,11.89297832,2684.6,2684.5,14.17130903]
[1724701617033,11.89297832,2684.6,2684.5,13.79892903]
[1724701617242,11.89297832,2684.6,2684.5,16.60237328]
[1724701617734,3.2078,2684.8,2684.7,0.37235]
[1724701618040,0.00558088,2684.9,2684.8,0.37233]
[1724701618233,6.89811049,2684.9,2684.8,8.38994775]
[1724701618432,6.89811049,2684.9,2684.8,12.32358859]
[1724701618736,6.89811049,2684.9,2684.8,12.33273223]
[1724701618932,6.89811049,2684.9,2684.8,11.96040223]
[1724701619332,6.89811049,2684.9,2684.8,9.52019434]
[1724701620842,6.89811049,2684.9,2684.8,9.79460722]
[1724701621029,11.8985592,2684.9,2684.8,11.74665391]
[1724701621838,11.8985592,2684.9,2684.8,11.74626893]
[1724701622041,11.8985592,2684.9,2684.8,9.79422224]
[1724701623137,11.8985592,2684.9,2684.8,11.74622787]
[1724701623339,12.9250592,2684.9,2684.8,7.74770264]
[1724701623644,12.9250592,2684.9,2684.8,11.4719236]
[1724701625244,12.9250592,2684.9,2684.8,7.74770264]
[1724701625443,12.9250592,2684.9,2684.8,11.47185523]
[1724701625852,6.89811049,2684.9,2684.8,12.33238749]
[1724701626039,6.89811049,2684.9,2684.8,13.29458749]
[1724701626635,6.89811049,2684.9,2684.8,10.8543796]
[1724701627039,6.89811049,2684.9,2684.8,13.29458749]
[1724701627247,4.1737,2685.2,2684.8,10.4820496]
[1724701627248,3.2078,2685.2,2684.8,10.4820496]
[1724701627543,8.20824871,2685.2,2685.1,3.21]
[1724701627745,15.10077832,2685.2,2685.1,5.44434617]
[1724701627945,10.10032961,2685.2,2685.1,15.4056959]
[1724701628649,10.10032961,2685.2,2685.1,15.0334059]
[1724701628839,10.10032961,2685.2,2685.1,11.3096105]
[1724701629040,15.10077832,2685.2,2685.1,6.14838111]
[1724701629239,15.10077832,2685.2,2685.1,2.83739224]
[1724701629440,15.10077832,2685.2,2685.1,0.97533607]
[1724701629845,15.10077832,2685.2,2685.1,2.8373776]
[1724701630148,15.10077832,2685.2,2685.1,1.86204153]
[1724701631034,15.10077832,2685.2,2685.0,1.46310861]
[1724701631035,0.37229,2685.1,2685.0,0.97540079]
[1724701631341,0.37232,2685.0,2684.8,0.97549345]
[1724701631539,0.37232,2685.0,2684.7,1.46320123]
[1724701631540,5.08612,2685.0,2684.7,0.97549345]
[1724701631853,3.7248,2684.9,2684.7,0.97549345]
[1724701632041,1.4228,2684.8,2684.7,0.97549345]
[1724701632247,1.4228,2684.8,2684.7,1.86231345]
[1724701632248,5.1476,2684.8,2684.7,1.86231345]
[1724701632444,18.35584871,2684.8,2684.6,0.97563299]
[1724701632644,0.37238,2684.5,2684.3,0.97563299]
[1724701632843,2.0351,2684.4,2684.3,0.97563299]
[1724701633150,5.7607,2684.4,2684.3,0.97563299]
[1724701633345,10.76114871,2684.4,2684.3,0.97563299]
[1724701633741,15.76114871,2684.4,2684.2,0.97563299]
[1724701633952,5.0255,2684.3,2684.2,0.97563299]
[1724701634149,5.0255,2684.3,2684.2,2.83831061]
[1724701634345,10.02594871,2684.3,2684.2,0.97563299]
[1724701634843,10.02594871,2684.3,2684.1,0.97563299]
[1724701636159,10.02594871,2684.3,2684.1,4.18563299]
[1724701636160,6.30034871,2684.3,2684.1,4.18563299]
[1724701636452,6.30034871,2684.3,2684.2,5.14458169]
[1724701636757,5.00044871,2684.3,2684.2,0.97563299]
[1724701636954,5.00044871,2684.3,2684.2,2.31883299]
[1724701637450,1.3553,2684.6,2684.3,0.3724]
[1724701637658,6.35574871,2684.6,2684.4,2.83720933]
[1724701637846,6.35574871,2684.6,2684.4,4.86713223]
[1724701640249,5.00044871,2684.6,2684.5,0.97481118]
[1724701643356,10.80730871,2684.6,2684.4,0.97481118]
[1724701643551,10.80730871,2684.6,2684.3,0.97481118]
[1724701643754,6.71014871,2684.6,2684.3,0.97481118]
[1724701644052,6.71014871,2684.6,2684.4,5.05328646]
[1724701644251,6.71014871,2684.6,2684.4,6.69938646]
[1724701644656,6.71014871,2684.6,2684.4,5.05328646]
[1724701645060,7.08251871,2684.6,2684.4,0.97481118]
[1724701645248,6.71014871,2684.6,2684.4,0.97481118]
[1724701646265,6.71014871,2684.6,2684.3,0.97481118]
[1724701646266,10.43494871,2684.6,2684.3,0.97481118]
[1724701646460,0.37238,2684.5,2684.2,0.97481118]
[1724701646662,1.302,2684.4,2684.1,0.97481118]
[1724701646964,1.302,2684.4,2684.1,4.92525624]
[1724701647161,5.85491,2684.3,2684.1,4.92525624]
[1724701647366,5.4825,2684.3,2684.0,0.00949093]
[1724701647565,6.75734871,2684.3,2684.0,0.00949093]
[1724701647962,6.75734871,2684.3,2684.1,0.97481118]
[1724701648164,5.00044871,2684.3,2684.2,3.58242]
[1724701648358,5.00044871,2684.3,2684.2,7.0434445]
[1724701648667,3.1327,2684.7,2684.3,0.3724]
[1724701648870,8.13314871,2684.7,2684.4,0.97456604]
[1724701649258,8.13314871,2684.7,2684.5,4.18456604]
[1724701649455,8.13314871,2684.7,2684.5,5.61506604]
[1724701649764,8.13314871,2684.7,2684.5,4.18456604]
[1724701649965,8.13314871,2684.7,2684.5,3.21]
[1724701650355,3.1327,2685.0,2684.6,5.9355852]
[1724701650557,3.2078,2685.2,2684.9,3.21]
[1724701650756,3.2078,2685.2,2684.9,4.18446861]
[1724701650965,8.20824871,2685.2,2684.9,5.78296861]
[1724701651760,8.20824871,2685.2,2684.9,6.15528861]
[1724701651955,8.20824871,2685.2,2685.1,3.21]
[1724701652269,3.2078,2685.2,2685.1,3.58229]
[1724701652467,3.2078,2685.2,2685.1,15.71188691]
[1724701652767,3.2078,2685.2,2685.1,15.71126425]
[1724701652964,3.2078,2685.2,2685.1,14.62232785]
[1724701653465,3.2078,2685.2,2685.1,16.57326282]
[1724701653668,0.00558088,2685.4,2685.2,0.37227]
[1724701653863,0.00558088,2685.4,2685.3,8.455311]
[1724701653864,5.00602959,2685.4,2685.3,8.455311]
[1724701654067,5.00602959,2685.4,2685.3,12.48596134]
[1724701654363,5.00602959,2685.4,2685.3,11.02489442]
[1724701654771,5.00602959,2685.4,2685.3,9.28759442]
[1724701654971,5.00602959,2685.4,2685.3,8.39959405]
[1724701655359,5.00602959,2685.4,2685.3,8.21427851]
[1724701655558,5.00602959,2685.4,2685.3,7.24065034]
[1724701656568,5.00602959,2685.4,2685.3,4.03065034]
[1724701656764,6.63132959,2685.4,2685.3,4.03065034]
[1724701656971,0.37227,2685.3,2685.0,0.97362817]
[1724701657163,2.02659,2685.2,2684.9,3.21]
[1724701657367,1.6543,2685.2,2684.9,3.21]
[1724701657575,6.65474871,2685.2,2684.9,3.21]
[1724701658168,6.65474871,2685.2,2685.0,4.03496122]
[1724701658371,3.21,2685.0,2684.0,0.97354921]
[1724701658667,0.93081,2684.9,2684.2,4.03496122]
[1724701658869,0.37235,2684.7,2684.2,4.03496122]
[1724701659070,0.37235,2684.7,2684.1,4.8851]
[1724701659273,0.37235,2684.7,2684.1,5.25753]
[1724701659463,0.37234,2684.8,2684.2,4.05742278]
[1724701659664,0.37235,2684.7,2684.2,4.05742278]
[1724701659865,0.37234,2684.8,2684.2,4.42984278]
[1724701660175,0.37237,2684.6,2684.2,4.05742278]
[1724701660477,0.37236,2684.7,2684.2,4.05742278]
[1724701660774,0.37236,2684.7,2684.2,4.42984278]
[1724701660973,0.93081,2684.9,2684.2,4.05742278]
[1724701660974,0.37236,2684.6,2684.2,4.05742278]
[1724701661173,0.37238,2684.5,2684.2,4.05742278]
[1724701661471,4.1409,2684.7,2684.1,0.01028052]
[1724701661671,5.3619,2684.4,2684.1,0.01028052]
[1724701661864,4.9895,2684.4,2684.1,0.01028052]
[1724701662070,5.36189,2684.4,2684.1,0.01028052]
[1724701662268,3.58242,2684.2,2684.1,0.01028052]
[1724701662671,12.30802,2684.2,2684.1,0.01028052]
[1724701662867,0.37245,2684.0,2683.4,0.18479337]
[1724701663273,1.6466,2683.9,2683.5,3.93530675]
[1724701664074,1.65089141,2683.9,2683.5,3.93972334]
[1724701665064,0.37248,2683.8,2683.5,3.93972334]
[1724701665267,2.02336141,2683.9,2683.5,3.93972334]
[1724701665468,1.7468,2683.8,2683.5,0.00441659]
[1724701667179,2.11927,2683.8,2683.5,0.00441659]
[1724701667688,0.37249,2683.7,2683.5,0.00441659]
[1724701667973,3.2078,2683.6,2683.5,0.00441659]
[1724701668375,6.9342,2683.6,2683.5,0.00441659]
[1724701669073,12.3067,2683.6,2683.5,0.00441659]
[1724701669266,4.65769,2683.5,2682.9,3.3575]
[1724701669466,0.93129,2683.5,2682.9,3.3575]
[1724701669666,0.37256,2683.2,2682.9,3.3575]
[1724701670266,0.37256,2683.2,2682.9,3.36204925]
[1724701670474,0.37255,2683.3,2682.9,3.36204925]
[1724701671369,0.37257,2683.2,2682.9,3.36204925]
[1724701672075,0.37257,2683.2,2682.9,0.00454925]
[1724701672276,0.37258,2683.0,2682.9,0.00454925]
[1724701672481,3.2078,2683.0,2682.9,0.00454925]
[1724701672775,11.935,2683.0,2682.9,0.00454925]
[1724701674080,6.935,2683.0,2682.9,0.00454925]
[1724701680880,3.2078,2683.0,2682.9,6.94174925]
[1724701681184,11.099,2683.7,2682.9,20.26574351]
[1724701681185,7.2958,2683.6,2682.9,20.26574351]
[1724701681368,7.2958,2683.6,2683.3,3.21]
[1724701681572,7.2958,2683.6,2683.4,1.6458]
[1724701682181,3.2078,2683.6,2683.5,7.82774396]
[1724701682378,0.00429141,2683.9,2683.8,0.37247]
[1724701682681,0.00429141,2683.9,2683.8,7.30807]
[1724701682879,0.00429141,2683.9,2683.8,11.55329396]
[1724701683091,0.00429141,2683.9,2683.8,8.34329396]
[1724701683383,0.00429141,2683.9,2683.8,11.55329396]
[1724701683969,0.00429141,2683.9,2683.8,16.55329396]
[1724701684173,0.00429141,2683.9,2683.8,11.55329396]
[1724701684574,0.00429141,2683.9,2683.8,11.18082396]
[1724701684774,0.00429141,2683.9,2683.8,7.45522396]
[1724701686471,0.00429141,2683.9,2683.8,4.24522396]
[1724701686675,0.37675141,2683.9,2683.7,1.6649]
[1724701687375,0.37675141,2683.9,2683.4,4.8558]
[1724701687376,3.7264,2683.8,2683.4,1.6458]
[1724701687582,3.7264,2683.8,2683.0,1.7631]
[1724701687583,5.438,2683.8,2683.0,1.7631]
[1724701687882,0.37252,2683.5,2683.1,1.6381]
[1724701688678,4.9216,2683.8,2683.1,1.6381]
[1724701688882,0.37255,2683.3,2683.1,1.6381]
[1724701689789,0.37254,2683.4,2683.1,1.6381]
[1724701689976,0.37254,2683.4,2683.0,1.7631]
[1724701690177,0.37255,2683.3,2683.0,1.7631]
[1724701690377,1.7658,2683.3,2682.9,0.00454925]
[1724701690589,3.2078,2683.0,2682.9,0.00454925]
[1724701691189,6.935,2683.0,2682.9,0.00454925]
[1724701691685,3.2078,2683.0,2682.9,0.00454925]
[1724701693988,3.2078,2683.3,2682.9,6.94174925]
[1724701694289,3.2078,2683.3,2683.0,1.7213]
[1724701694584,3.2078,2683.3,2683.1,4.18233037]
[1724701694788,3.2078,2683.3,2683.2,4.9182]
[1724701695584,3.2078,2683.3,2683.2,5.29076]
[1724701695780,3.2078,2683.3,2683.2,4.9182]
[1724701696086,3.2078,2683.3,2683.2,1.7082]
[1724701708993,3.2078,2683.3,2683.2,2.08076]
[1724701709195,3.2078,2683.3,2683.2,13.03217485]
[1724701709508,1.6396,2683.8,2683.4,0.37252]
[1724701709509,4.8474,2683.8,2683.4,0.37252]
[1724701709692,4.8474,2683.8,2683.6,3.21]
[1724701713492,4.8474,2683.8,2683.5,1.718]
[1724701713898,4.8474,2683.8,2683.6,3.96683283]
[1724701724102,6.4698,2683.8,2683.6,3.96683283]
[1724701724507,4.8474,2683.8,2683.6,3.96683283]
[1724701724698,4.8474,2683.8,2683.7,1.7212]
[1724701725000,3.2078,2683.8,2683.7,1.7212]
[1724701726903,0.00429141,2683.9,2683.7,1.7212]
[1724701727202,3.2078,2683.8,2683.7,1.7212]
[1724701727996,3.2078,2683.8,2683.7,5.4476]
[1724701728195,3.2078,2683.8,2683.7,17.6423091]
[1724701728392,3.2078,2683.8,2683.7,16.66806637]
[1724701728998,0.00429141,2683.9,2683.8,0.37247]
[1724701729200,0.00429141,2683.9,2683.8,12.2901575]
[1724701729409,0.00558088,2684.0,2683.9,0.37246]
[1724701729616,0.00558088,2684.0,2683.9,7.4224475]
[1724701729906,0.00558088,2684.0,2683.9,14.82999103]
[1724701730095,0.00558088,2684.0,2683.9,9.64879258]
[1724701730408,0.00966987,2684.0,2683.9,9.64879258]
[1724701731306,0.00966987,2684.0,2683.9,5.92319258]
[1724701731497,1.67256987,2684.0,2683.7,2.69565409]
[1724701731705,5.13566987,2684.0,2683.7,2.69565409]
[1724701731905,5.13566987,2684.0,2683.7,1.7212]
[1724701732506,5.13566987,2684.0,2683.7,2.69565409]
[1724701733210,5.13566987,2684.0,2683.7,1.7212]
[1724701734109,1.67256987,2684.0,2683.7,3.06813409]
[1724701734307,1.67256987,2684.0,2683.8,0.97445409]
[1724701735114,1.67256987,2684.0,2683.7,2.69565409]
[1724701735408,1.67256987,2684.0,2683.8,0.97445409]
[1724701736001,1.67256987,2684.0,2683.7,3.06813409]
[1724701736311,1.67256987,2684.0,2683.7,2.69565409]
[1724701736704,1.67256987,2684.0,2683.8,0.97445409]
[1724701736903,1.67256987,2684.0,2683.7,1.7212]
[1724701736904,1.67256987,2684.0,2683.7,0.97445409]
[1724701737315,1.67256987,2684.0,2683.7,1.25698075]
[1724701737619,1.67256987,2684.0,2683.8,4.15536343]
[1724701738412,1.67256987,2684.0,2683.9,4.8298]
[1724701738413,0.00966987,2684.0,2683.9,4.8298]
[1724701738720,0.00966987,2684.0,2683.9,5.80425409]
[1724701739219,0.00966987,2684.0,2683.9,6.17671409]
[1724701739529,3.2078,2684.1,2684.0,0.37245]
[1724701739710,3.2078,2684.1,2684.0,9.18966986]
[1724701739909,3.2078,2684.1,2684.0,13.48375663]
[1724701739910,2.80352538,2684.1,2684.0,13.48375663]
[1724701740109,1.6498,2684.6,2684.2,0.37242]
[1724701740424,1.6534418,2684.6,2684.4,4.18475029]
[1724701740608,1.6534418,2684.6,2684.5,1.7668]
[1724701741015,1.6534418,2684.6,2684.3,2.58485029]
[1724701741312,1.6534418,2684.6,2684.2,1.46770631]
[1724701741313,3.5802,2684.4,2684.2,0.00558088]
[1724701741519,3.382,2684.3,2684.2,0.00558088]
[1724701746110,3.7544,2684.3,2684.2,0.00558088]
[1724701746311,13.41102,2684.3,2684.2,0.00558088]
[1724701747313,12.48,2684.3,2684.2,0.00558088]
[1724701747619,7.48,2684.3,2684.2,0.00558088]
[1724701748410,0.9311,2684.1,2683.6,0.97475029]
[1724701748614,0.37247,2683.8,2683.5,7.53005029]
[1724701748811,3.2078,2683.6,2683.5,4.32005029]
[1724701749016,3.2078,2683.6,2683.4,0.97475029]
[1724701749219,3.2078,2683.6,2683.4,1.34727029]
[1724701749422,3.2078,2683.6,2683.5,9.15235099]
[1724701749616,3.2078,2683.6,2683.5,16.20381206]
[1724701749823,3.2078,2684.0,2683.5,14.36916663]
[1724701750020,3.2078,2684.0,2683.9,0.37246]
[1724701750324,15.187,2684.4,2684.0,0.37244]
[1724701750626,15.187,2684.4,2684.1,7.35271815]
[1724701750812,3.2078,2684.5,2684.3,3.5824]
[1724701751121,3.2078,2684.5,2684.4,5.94656594]
[1724701751319,1.7618418,2684.6,2684.5,0.37238]
[1724701751320,0.0036418,2684.6,2684.5,0.37238]
[1724701751519,0.0036418,2684.6,2684.5,10.63222847]
[1724701751824,0.0036418,2684.6,2684.5,14.53970859]
[1724701752118,0.0036418,2684.6,2684.5,14.05154948]
[1724701752321,0.0036418,2684.6,2684.5,8.46444422]
[1724701752527,0.0036418,2684.6,2684.5,12.18924422]
[1724701752728,0.0036418,2684.6,2684.5,13.44928022]
[1724701752916,0.0036418,2684.6,2684.5,19.91202343]
[1724701753116,0.0036418,2684.6,2684.5,20.39637864]
[1724701753316,0.00011057,2684.6,2684.5,24.12041838]
[1724701753617,0.00558088,2684.7,2684.6,0.37236]
[1724701753812,0.00558088,2684.7,2684.6,5.9594001]
[1724701754019,0.00558088,2684.7,2684.6,17.10861053]
[1724701754214,3.2078,2685.2,2684.6,14.78915211]
[1724701754421,3.2078,2685.2,2685.1,3.21]
[1724701754621,3.21214876,2685.2,2685.1,3.21276577]
[1724701754818,3.21214876,2685.2,2685.1,10.98779982]
[1724701757223,0.00434876,2685.2,2685.1,10.98779982]
[1724701758637,0.00434876,2685.2,2685.1,11.36008982]
[1724701758832,0.00434876,2685.2,2685.1,10.98779982]
[1724701759032,0.00434876,2685.2,2685.1,16.36008982]
[1724701760135,0.00434876,2685.2,2685.1,11.36008982]
[1724701760732,0.00434876,2685.2,2685.1,10.98779982]
[1724701761530,0.00434876,2685.2,2685.1,11.36008982]
[1724701762038,0.00434876,2685.2,2685.1,10.98779982]
[1724701764632,0.00434876,2685.2,2685.1,11.36008982]
[1724701767331,0.00558088,2685.4,2685.3,0.37227]
[1724701767726,0.00558088,2685.4,2685.3,8.21592988]
[1724701768231,0.01031441,2685.4,2685.3,8.21592988]
[1724701768536,1.7953,2686.0,2685.6,0.37222]
[1724701768537,5.0031,2686.0,2685.6,0.37222]
[1724701768734,5.0031,2686.0,2685.7,3.4716]
[1724701768939,5.0031,2686.0,2685.7,7.69917425]
[1724701769239,3.2078,2686.0,2685.7,7.69917425]
[1724701769634,0.00479805,2686.0,2685.7,7.69917425]
[1724701770541,0.00479805,2686.0,2685.8,3.21]
[1724701771042,0.00479805,2686.0,2685.9,4.04170844]
[1724701772837,4.10016805,2686.0,2685.9,4.04170844]
[1724701773043,0.37219,2685.9,2685.6,3.21]
[1724701773434,1.7778,2685.8,2685.6,3.21]
[1724701774135,5.501,2685.8,2685.6,3.21]
[1724701774534,1.7867,2685.7,2685.6,3.21]
[1724701774929,5.5099,2685.7,2685.6,3.21]
[1724701777442,5.5099,2685.7,2685.3,3.21]
[1724701777643,1.7867,2685.7,2685.3,3.21]
[1724701778937,3.2078,2685.4,2685.3,3.21]
[1724701779333,3.2078,2685.4,2685.1,3.21276577]
[1724701779536,1.8042,2685.3,2685.1,3.21276577]
[1724701779738,2.17647,2685.3,2685.2,4.07533716]
[1724701779941,4.09628,2685.2,2685.1,0.00276577]
[1724701780139,7.47998,2685.2,2685.1,0.00276577]
[1724701780642,12.47998,2685.2,2685.1,0.00276577]
[1724701784248,3.724,2685.1,2684.2,4.9231]
[1724701784450,3.724,2685.1,2684.2,3.21]
[1724701784451,0.37235,2684.7,2684.2,3.21]
[1724701784654,3.5503,2684.6,2684.2,3.21]
[1724701784861,3.5503,2684.6,2684.2,3.58242]
[1724701785259,3.5503,2684.6,2684.2,3.58506902]
[1724701785560,3.5503,2684.6,2684.2,3.21264902]
[1724701786552,3.92267,2684.6,2684.2,3.21264902]
[1724701787061,3.5503,2684.6,2684.2,3.21264902]
[1724701787251,5.2389,2684.6,2684.2,3.21264902]
[1724701792566,5.61127,2684.6,2684.2,3.21264902]
[1724701792863,3.7256,2684.5,2684.2,0.00264902]
[1724701793062,0.37238,2684.5,2684.2,0.00264902]
[1724701793265,3.7256,2684.4,2684.2,0.00264902]
[1724701793462,3.7256,2684.5,2684.2,0.00264902]
[1724701793768,5.2389,2684.6,2684.2,0.00264902]
[1724701794858,5.61127,2684.6,2684.2,0.00264902]
[1724701795262,5.2389,2684.6,2684.2,0.00264902]
[1724701795459,5.61127,2684.6,2684.2,0.00264902]
[1724701798960,0.37238,2684.5,2684.2,0.00264902]
[1724701800264,0.00558088,2684.7,2684.4,3.21]
[1724701800472,10.1978,2685.4,2685.0,0.37229]
[1724701800473,4.088,2685.3,2685.0,0.37229]
[1724701800765,10.1978,2685.4,2685.2,3.21]
[1724701800766,3.2078,2685.4,2685.2,3.21]
[1724701800960,3.2078,2685.4,2685.1,3.5618]
[1724701801678,3.2078,2685.4,2685.2,3.21]
[1724701804773,3.58006,2685.4,2685.1,5.3235]
[1724701804970,0.37227,2685.3,2685.1,3.5618]
[1724701805267,3.58006,2685.4,2685.1,3.5618]
[1724701805469,0.37227,2685.3,2685.1,3.5618]
[1724701806063,3.2078,2685.4,2685.1,3.5618]
[1724701806260,3.2078,2685.4,2685.2,4.9855]
[1724701806469,3.2078,2685.4,2685.2,9.14193142]
[1724701807072,3.2078,2685.4,2685.2,3.21]
[1724701807771,0.37228,2685.3,2685.1,3.5618]
[1724701807966,2.07738,2685.3,2685.1,3.5618]
[1724701808171,0.37235,2684.8,2684.2,1.34852885]
[1724701808367,4.088,2685.1,2684.5,3.21]
[1724701808772,0.37233,2684.9,2684.5,3.21]
[1724701808973,0.37232,2685.0,2684.5,3.21]
[1724701809174,4.088,2685.1,2684.7,3.21]
[1724701809373,4.088,2685.1,2684.8,3.6183]
[1724701809578,2.07738,2685.3,2685.0,3.21]
[1724701809782,10.57006,2685.4,2685.0,3.21]
[1724701810079,0.37227,2685.3,2685.0,3.21]
[1724701810579,10.57006,2685.4,2685.0,3.21]
[1724701811170,10.57006,2685.4,2684.9,1.7236]
[1724701811171,3.2078,2685.4,2685.2,3.21]
[1724701811379,3.2078,2685.4,2685.3,1.8279]
[1724701814578,3.2078,2685.4,2685.3,6.01121999]
[1724701814974,3.2078,2685.4,2685.3,7.72681999]
[1724701815288,3.2078,2685.4,2685.3,16.45081999]
[1724701815481,0.00558088,2685.5,2685.4,0.37225]
[1724701815675,0.00558088,2685.5,2685.4,7.30625]
[1724701815872,0.00558088,2685.5,2685.4,11.55940574]
[1724701816276,3.2078,2685.8,2685.7,0.37221]
[1724701816582,3.2078,2685.8,2685.7,7.3398863]
[1724701816785,3.2078,2685.8,2685.7,11.0630863]
[1724701817178,0.00479805,2686.0,2685.7,11.0630863]
[1724701817486,0.00479805,2686.0,2685.8,1.7018]
[1724701817681,0.37696805,2686.0,2685.8,1.7018]
[1724701817983,0.37697805,2686.0,2685.6,3.21558088]
[1724701818294,1.7007,2685.9,2685.6,3.21558088]
[1724701819383,0.00479805,2686.0,2685.8,3.21]
[1724701819881,0.00479805,2686.0,2685.9,1.8264]
[1724701820085,0.00479805,2686.0,2685.9,6.08580579]
[1724701820380,0.00479805,2686.0,2685.9,10.18118579]
[1724701820580,0.00479805,2686.0,2685.9,15.18118579]
[1724701821190,0.00558088,2686.1,2686.0,0.37217]
[1724701821376,0.00558088,2686.1,2686.0,9.01277]
[1724701821576,0.00558088,2686.1,2686.0,18.07264132]
[1724701821774,3.2078,2686.2,2686.1,0.37215]
[1724701821975,11.099,2687.1,2686.1,11.931]
[1724701822182,0.00474193,2687.1,2686.9,3.21]
[1724701822986,0.00474193,2687.1,2687.0,8.3837631]
[1724701823193,0.00558088,2687.3,2687.1,0.37201]
[1724701823374,0.00558088,2687.3,2687.2,7.3036]
[1724701823581,0.00558088,2687.3,2687.2,7.8721331]
[1724701823781,0.00558088,2687.3,2687.2,11.5937331]
[1724701823989,0.00558088,2687.3,2687.2,11.2217331]
[1724701824187,0.00902895,2687.3,2687.2,7.5001331]